[Event "Masters Tournament (MTO)"]
[Site "Biel, Switzerland"]
[Date "2026.07.15"]
[Round "3.19"]
[White "Monteverde, Jonathan"]
[Black "Rappazzo, Johannes"]
[Result "0-1"]
[TimeControl "100+30+30sec/move"]
[WhiteTitle "-"]
[BlackTitle "-"]
[WhiteFideId "1314580"]
[BlackFideId "1340069"]
[WhiteElo "2098"]
[BlackElo "2268"]

1. d4 {[%clk 01:40:57]} {[%emt 00:00:01]} Nf6 {[%clk 01:40:55]} {[%emt
00:00:06]} 2. c4 {[%clk 01:41:23]} {[%emt 00:00:03]} g6 {[%clk 01:41:21]}
{[%emt 00:00:04]} 3. Nc3 {[%clk 01:41:49]} {[%emt 00:00:04]} Bg7 {[%clk
01:41:48]} {[%emt 00:00:04]} 4. e4 {[%clk 01:42:15]} {[%emt 00:00:04]} d6
{[%clk 01:42:15]} {[%emt 00:00:03]} 5. Nf3 {[%clk 01:42:41]} {[%emt 00:00:04]}
O-O {[%clk 01:42:41]} {[%emt 00:00:04]} 6. h3 {[%clk 01:43:06]} {[%emt
00:00:04]} e5 {[%clk 01:43:03]} {[%emt 00:00:09]} 7. d5 {[%clk 01:43:30]}
{[%emt 00:00:05]} a5 {[%clk 01:43:24]} {[%emt 00:00:10]} 8. g4 {[%clk
01:43:42]} {[%emt 00:00:18]} Na6 {[%clk 01:43:44]} {[%emt 00:00:10]} 9. Be3
{[%clk 01:44:08]} {[%emt 00:00:04]} Nd7 {[%clk 01:44:07]} {[%emt 00:00:07]} 10.
a3 {[%clk 01:39:32]} {[%emt 00:05:06]} Nb6 {[%clk 01:43:57]} {[%emt 00:00:40]}
11. Nd2 {[%clk 01:32:37]} {[%emt 00:07:24]} Bf6 {[%clk 01:39:51]} {[%emt
00:04:37]} 12. Nf3 {[%clk 01:31:12]} {[%emt 00:01:55]} Bd7 {[%clk 01:39:11]}
{[%emt 00:01:10]} 13. Rg1 {[%clk 01:24:20]} {[%emt 00:07:21]} Bg7 {[%clk
01:37:56]} {[%emt 00:01:46]} 14. Nd2 {[%clk 01:23:54]} {[%emt 00:00:55]} Kh8
{[%clk 01:16:04]} {[%emt 00:22:22]} 15. g5 {[%clk 01:22:04]} {[%emt 00:02:20]}
f5 {[%clk 01:09:26]} {[%emt 00:07:09]} 16. f3 {[%clk 01:21:42]} {[%emt
00:00:50]} Nc5 {[%clk 01:05:26]} {[%emt 00:04:31]} 17. b3 {[%clk 01:16:38]}
{[%emt 00:05:35]} fxe4 {[%clk 00:43:03]} {[%emt 00:22:53]} 18. fxe4 {[%clk
01:14:31]} {[%emt 00:02:36]} a4 {[%clk 00:36:39]} {[%emt 00:06:54]} 19. b4
{[%clk 01:09:17]} {[%emt 00:05:45]} Rxf1+ {[%clk 00:35:17]} {[%emt 00:01:52]}
20. Nxf1 {[%clk 00:53:30]} {[%emt 00:16:16]} Nb3 {[%clk 00:35:09]} {[%emt
00:00:38]} 21. Nd2 {[%clk 00:53:35]} {[%emt 00:00:26]} Nxd2 {[%clk 00:29:46]}
{[%emt 00:05:53]} 22. Qxd2 {[%clk 00:52:47]} {[%emt 00:01:18]} Nxc4 {[%clk
00:30:10]} {[%emt 00:00:06]} 23. Qe2 {[%clk 00:52:50]} {[%emt 00:00:26]} b5
{[%clk 00:26:22]} {[%emt 00:04:18]} 24. Bc1 {[%clk 00:49:17]} {[%emt 00:04:03]}
c6 {[%clk 00:24:47]} {[%emt 00:02:06]} 25. Be3 {[%clk 00:41:38]} {[%emt
00:08:08]} Rc8 {[%clk 00:20:43]} {[%emt 00:04:35]} 26. Bf2 {[%clk 00:31:50]}
{[%emt 00:10:17]} cxd5 {[%clk 00:13:26]} {[%emt 00:07:48]} 27. Nxd5 {[%clk
00:29:56]} {[%emt 00:02:24]} Be6 {[%clk 00:12:48]} {[%emt 00:01:07]} 28. Qd3
{[%clk 00:27:07]} {[%emt 00:03:19]} Qf8 {[%clk 00:11:54]} {[%emt 00:01:25]} 29.
Rc1 {[%clk 00:19:23]} {[%emt 00:08:14]} Nb2 {[%clk 00:11:12]} {[%emt 00:01:12]}
0-1

[Event "Masters Tournament (MTO)"]
[Site "Biel, Switzerland"]
[Date "2026.07.15"]
[Round "3.20"]
[White "Kukushkin, Ivan"]
[Black "Schmidt, Florian Pascal"]
[Result "1-0"]
[TimeControl "100+30+30sec/move"]
[WhiteTitle "-"]
[BlackTitle "-"]
[WhiteFideId "11634103"]
[BlackFideId "16256840"]
[WhiteElo "2257"]
[BlackElo "2095"]

1. e4 {[%clk 01:35:52]} {[%emt 00:05:04]} c5 {[%clk 01:40:47]} {[%emt
00:00:13]} 2. Nf3 {[%clk 01:35:39]} {[%emt 00:00:45]} d6 {[%clk 01:41:01]}
{[%emt 00:00:15]} 3. Bc4 {[%clk 01:35:04]} {[%emt 00:01:05]} e6 {[%clk
01:40:21]} {[%emt 00:01:10]} 4. O-O {[%clk 01:34:44]} {[%emt 00:00:50]} Nf6
{[%clk 01:40:14]} {[%emt 00:00:37]} 5. Re1 {[%clk 01:34:58]} {[%emt 00:00:16]}
Be7 {[%clk 01:40:08]} {[%emt 00:00:36]} 6. c3 {[%clk 01:34:06]} {[%emt
00:01:22]} O-O {[%clk 01:40:08]} {[%emt 00:00:30]} 7. Bf1 {[%clk 01:30:28]}
{[%emt 00:04:09]} Nc6 {[%clk 01:33:02]} {[%emt 00:07:35]} 8. d4 {[%clk
01:30:16]} {[%emt 00:00:42]} cxd4 {[%clk 01:26:39]} {[%emt 00:06:54]} 9. cxd4
{[%clk 01:30:30]} {[%emt 00:00:16]} d5 {[%clk 01:26:56]} {[%emt 00:00:13]} 10.
e5 {[%clk 01:26:43]} {[%emt 00:04:16]} Ne4 {[%clk 01:25:52]} {[%emt 00:01:34]}
11. Bd3 {[%clk 01:22:59]} {[%emt 00:04:14]} f5 {[%clk 01:22:28]} {[%emt
00:03:54]} 12. exf6 {[%clk 01:22:39]} {[%emt 00:00:51]} Nxf6 {[%clk 01:22:47]}
{[%emt 00:00:10]} 13. Nc3 {[%clk 01:21:29]} {[%emt 00:01:40]} Bd7 {[%clk
01:13:39]} {[%emt 00:09:38]} 14. Bg5 {[%clk 01:16:55]} {[%emt 00:05:04]} Be8
{[%clk 01:08:42]} {[%emt 00:05:27]} 15. Ne5 {[%clk 01:05:01]} {[%emt 00:12:25]}
Nxe5 {[%clk 00:45:16]} {[%emt 00:23:55]} 16. dxe5 {[%clk 01:03:19]} {[%emt
00:02:11]} Nd7 {[%clk 00:44:32]} {[%emt 00:01:15]} 17. Bxe7 {[%clk 01:03:14]}
{[%emt 00:00:35]} Qxe7 {[%clk 00:44:58]} {[%emt 00:00:04]} 18. Qg4 {[%clk
01:02:34]} {[%emt 00:01:10]} Nc5 {[%clk 00:39:25]} {[%emt 00:06:03]} 19. Bc2
{[%clk 00:59:39]} {[%emt 00:03:25]} Qf7 {[%clk 00:39:35]} {[%emt 00:00:20]} 20.
Qh4 {[%clk 00:52:46]} {[%emt 00:07:22]} Qh5 {[%clk 00:37:22]} {[%emt 00:02:44]}
21. Qg3 {[%clk 00:51:08]} {[%emt 00:02:08]} Rc8 {[%clk 00:34:00]} {[%emt
00:03:51]} 22. Bd1 {[%clk 00:48:29]} {[%emt 00:03:10]} Qg6 {[%clk 00:32:55]}
{[%emt 00:01:34]} 23. Bg4 {[%clk 00:48:02]} {[%emt 00:00:57]} Bc6 {[%clk
00:24:06]} {[%emt 00:09:19]} 24. Qh3 {[%clk 00:37:25]} {[%emt 00:11:08]} Kh8
{[%clk 00:18:56]} {[%emt 00:05:41]} 25. Rad1 {[%clk 00:35:28]} {[%emt
00:02:25]} Rf4 {[%clk 00:18:06]} {[%emt 00:01:21]} 26. f3 {[%clk 00:30:29]}
{[%emt 00:05:29]} Rb4 {[%clk 00:07:06]} {[%emt 00:11:30]} 27. Ne2 {[%clk
00:24:44]} {[%emt 00:06:15]} Rxb2 {[%clk 00:05:32]} {[%emt 00:02:04]} 28. Nf4
{[%clk 00:24:47]} {[%emt 00:00:27]} Qc2 {[%clk 00:05:10]} {[%emt 00:00:51]} 29.
Rd2 {[%clk 00:24:45]} {[%emt 00:00:33]} 1-0

[Event "Masters Tournament (MTO)"]
[Site "Biel, Switzerland"]
[Date "2026.07.15"]
[Round "3.21"]
[White "Iafelice, Vincenzo"]
[Black "Joly, Julien"]
[Result "1-0"]
[TimeControl "100+30+30sec/move"]
[WhiteTitle "-"]
[BlackTitle "-"]
[WhiteFideId "810541"]
[BlackFideId "26082284"]
[WhiteElo "2086"]
[BlackElo "2257"]

1. e4 {[%clk 01:40:57]} {[%emt 00:00:02]} c5 {[%clk 01:40:53]} {[%emt
00:00:08]} 2. Nf3 {[%clk 01:41:20]} {[%emt 00:00:06]} Nc6 {[%clk 01:41:19]}
{[%emt 00:00:04]} 3. d4 {[%clk 01:41:43]} {[%emt 00:00:07]} cxd4 {[%clk
01:41:44]} {[%emt 00:00:06]} 4. Nxd4 {[%clk 01:42:09]} {[%emt 00:00:04]} g6
{[%clk 01:42:10]} {[%emt 00:00:04]} 5. c4 {[%clk 01:41:39]} {[%emt 00:00:59]}
Bg7 {[%clk 01:42:36]} {[%emt 00:00:05]} 6. Be3 {[%clk 01:41:32]} {[%emt
00:00:37]} Nf6 {[%clk 01:42:58]} {[%emt 00:00:08]} 7. Nc3 {[%clk 01:41:50]}
{[%emt 00:00:12]} Ng4 {[%clk 01:43:16]} {[%emt 00:00:12]} 8. Qxg4 {[%clk
01:41:18]} {[%emt 00:01:02]} Nxd4 {[%clk 01:43:44]} {[%emt 00:00:02]} 9. Qd1
{[%clk 01:41:22]} {[%emt 00:00:26]} Ne6 {[%clk 01:44:09]} {[%emt 00:00:06]} 10.
Qd2 {[%clk 01:39:18]} {[%emt 00:02:33]} d6 {[%clk 01:44:29]} {[%emt 00:00:11]}
11. Be2 {[%clk 01:37:37]} {[%emt 00:02:11]} Bd7 {[%clk 01:44:54]} {[%emt
00:00:04]} 12. O-O {[%clk 01:36:15]} {[%emt 00:01:52]} a5 {[%emt 00:01:56]} 13.
f4 {[%clk 01:25:05]} {[%emt 00:09:46]} Bc6 {[%clk 01:42:02]} {[%emt 00:03:51]}
14. Rad1 {[%clk 01:14:18]} {[%emt 00:11:16]} O-O {[%clk 01:42:01]} {[%emt
00:00:32]} 15. Nd5 {[%clk 01:02:11]} {[%emt 00:12:36]} Nc5 {[%clk 01:36:05]}
{[%emt 00:06:26]} 16. e5 {[%clk 00:55:02]} {[%emt 00:07:38]} Nd7 {[%clk
01:28:41]} {[%emt 00:07:54]} 17. exd6 {[%clk 00:53:03]} {[%emt 00:02:30]} exd6
{[%clk 01:29:10]} {[%emt 00:00:02]} 18. Bf3 {[%clk 00:48:02]} {[%emt 00:05:30]}
Nc5 {[%clk 01:25:18]} {[%emt 00:04:23]} 19. Bd4 {[%clk 00:46:01]} {[%emt
00:02:30]} Bxd5 {[%clk 01:23:27]} {[%emt 00:02:21]} 20. Bxd5 {[%clk 00:45:09]}
{[%emt 00:01:22]} Qb6 {[%clk 01:14:18]} {[%emt 00:09:39]} 21. f5 {[%clk
00:41:02]} {[%emt 00:04:37]} Bxd4+ {[%clk 01:10:37]} {[%emt 00:04:11]} 22. Qxd4
{[%clk 00:41:24]} {[%emt 00:00:07]} Na4 {[%clk 01:09:49]} {[%emt 00:01:18]} 23.
fxg6 {[%clk 00:40:33]} {[%emt 00:01:21]} hxg6 {[%clk 01:08:46]} {[%emt
00:01:34]} 24. Rf6 {[%clk 00:36:54]} {[%emt 00:04:08]} Qxd4+ {[%clk 01:08:12]}
{[%emt 00:01:05]} 25. Rxd4 {[%clk 00:37:22]} {[%emt 00:00:02]} Kg7 {[%clk
01:08:26]} {[%emt 00:00:16]} 26. Rdf4 {[%clk 00:37:23]} {[%emt 00:00:28]} Nxb2
{[%clk 00:59:03]} {[%emt 00:09:54]} 27. Bxf7 {[%clk 00:31:46]} {[%emt
00:06:07]} Kh7 {[%clk 00:58:53]} {[%emt 00:00:40]} 28. Bxg6+ {[%clk 00:30:55]}
{[%emt 00:01:21]} Kg7 {[%clk 00:59:17]} {[%emt 00:00:06]} 29. Bf7 {[%clk
00:31:08]} {[%emt 00:00:17]} Rh8 {[%clk 00:58:34]} {[%emt 00:01:13]} 30. Rg6+
{[%clk 00:30:27]} {[%emt 00:01:11]} Kf8 {[%clk 00:59:03]} {[%emt 00:00:01]} 31.
Bd5+ {[%clk 00:30:32]} {[%emt 00:00:25]} Ke8 {[%clk 00:59:24]} {[%emt
00:00:08]} 32. Rxd6 {[%clk 00:23:28]} {[%emt 00:07:34]} Rc8 {[%clk 00:59:16]}
{[%emt 00:00:39]} 33. Re4+ {[%clk 00:21:49]} {[%emt 00:02:09]} Kf8 {[%clk
00:59:41]} {[%emt 00:00:04]} 34. Rf6+ {[%clk 00:21:54]} {[%emt 00:00:26]} Kg7
{[%clk 01:00:09]} {[%emt 00:00:01]} 35. Rf7+ {[%clk 00:21:03]} {[%emt
00:01:21]} Kg6 {[%clk 01:00:26]} {[%emt 00:00:14]} 36. Rxb7 {[%clk 00:19:38]}
{[%emt 00:01:55]} Nd3 {[%clk 01:00:40]} {[%emt 00:00:16]} 37. Re6+ {[%clk
00:18:14]} {[%emt 00:01:54]} Kg5 {[%clk 01:00:52]} {[%emt 00:00:18]} 38. Rg7+
{[%clk 00:18:26]} {[%emt 00:00:17]} Kf5 {[%clk 01:00:58]} {[%emt 00:00:25]} 39.
Rf7+ {[%clk 00:15:55]} {[%emt 00:03:00]} Kg5 {[%clk 01:01:19]} {[%emt
00:00:11]} 40. Re3 {[%clk 00:15:31]} {[%emt 00:00:52]} Nb4 {[%clk 01:01:21]}
{[%emt 00:00:29]} 41. Rg3+ {[%clk 00:15:48]} {[%emt 00:00:12]} Kh6 {[%clk
01:01:37]} {[%emt 00:00:15]} 42. Rf6+ {[%clk 00:16:07]} {[%emt 00:00:10]} Kh5
{[%clk 01:02:00]} {[%emt 00:00:08]} 43. Bf7+ {[%clk 00:16:25]} {[%emt
00:00:12]} 1-0

[Event "Masters Tournament (MTO)"]
[Site "Biel, Switzerland"]
[Date "2026.07.15"]
[Round "3.22"]
[White "Dauth, Benjamin"]
[Black "Yasaswi, Krishna Bommi"]
[Result "0-1"]
[TimeControl "100+30+30sec/move"]
[WhiteTitle "-"]
[BlackTitle "-"]
[WhiteFideId "4688104"]
[BlackFideId "33368783"]
[WhiteElo "2247"]
[BlackElo "2085"]

1. e4 {[%clk 01:40:56]} {[%emt 00:00:05]} c5 {[%clk 01:40:53]} {[%emt
00:00:07]} 2. c3 {[%clk 01:41:09]} {[%emt 00:00:16]} Nf6 {[%clk 01:41:17]}
{[%emt 00:00:07]} 3. e5 {[%clk 01:41:33]} {[%emt 00:00:05]} Nd5 {[%clk
01:41:43]} {[%emt 00:00:04]} 4. Bc4 {[%clk 01:41:28]} {[%emt 00:00:36]} e6
{[%clk 01:42:05]} {[%emt 00:00:08]} 5. Nf3 {[%clk 01:41:43]} {[%emt 00:00:15]}
d6 {[%clk 01:42:19]} {[%emt 00:00:15]} 6. O-O {[%clk 01:41:58]} {[%emt
00:00:15]} Be7 {[%clk 01:39:45]} {[%emt 00:03:04]} 7. d4 {[%clk 01:41:31]}
{[%emt 00:00:57]} cxd4 {[%clk 01:39:57]} {[%emt 00:00:18]} 8. cxd4 {[%clk
01:41:55]} {[%emt 00:00:07]} O-O {[%clk 01:40:02]} {[%emt 00:00:24]} 9. Nc3
{[%clk 01:41:53]} {[%emt 00:00:33]} Nxc3 {[%clk 01:39:05]} {[%emt 00:01:27]} 10.
bxc3 {[%clk 01:42:18]} {[%emt 00:00:04]} Nd7 {[%clk 01:36:37]} {[%emt
00:02:58]} 11. exd6 {[%clk 01:40:45]} {[%emt 00:02:04]} Bxd6 {[%clk 01:37:01]}
{[%emt 00:00:06]} 12. Bd3 {[%clk 01:41:06]} {[%emt 00:00:08]} b6 {[%clk
01:31:09]} {[%emt 00:06:23]} 13. Ng5 {[%clk 01:39:01]} {[%emt 00:02:34]} Nf6
{[%clk 01:25:28]} {[%emt 00:06:12]} 14. Qf3 {[%clk 01:31:18]} {[%emt 00:08:12]}
Rb8 {[%clk 01:25:42]} {[%emt 00:00:17]} 15. Bd2 {[%clk 01:29:43]} {[%emt
00:02:05]} Bb7 {[%clk 01:21:49]} {[%emt 00:04:22]} 16. Ne4 {[%clk 01:28:27]}
{[%emt 00:01:47]} Nxe4 {[%clk 01:21:14]} {[%emt 00:01:05]} 17. Bxe4 {[%clk
01:28:52]} {[%emt 00:00:04]} Qh4 {[%clk 01:20:35]} {[%emt 00:01:10]} 18. Rfe1
{[%clk 01:28:47]} {[%emt 00:00:35]} Qxh2+ {[%clk 01:11:04]} {[%emt 00:10:01]}
19. Kf1 {[%clk 01:29:13]} {[%emt 00:00:04]} Ba6+ {[%clk 01:08:08]} {[%emt
00:03:26]} 20. Bd3 {[%clk 01:29:32]} {[%emt 00:00:10]} Bxd3+ {[%clk 01:04:40]}
{[%emt 00:03:58]} 21. Qxd3 {[%clk 01:29:57]} {[%emt 00:00:06]} Qh1+ {[%clk
01:04:50]} {[%emt 00:00:19]} 22. Ke2 {[%clk 01:30:22]} {[%emt 00:00:05]} Qxg2
{[%clk 01:05:00]} {[%emt 00:00:20]} 23. Rg1 {[%clk 01:30:36]} {[%emt 00:00:17]}
Qd5 {[%clk 01:04:10]} {[%emt 00:01:19]} 24. Rg5 {[%clk 01:28:24]} {[%emt
00:02:42]} f5 {[%clk 00:58:26]} {[%emt 00:06:14]} 25. Qh3 {[%clk 01:28:48]}
{[%emt 00:00:06]} Qe4+ {[%clk 00:54:08]} {[%emt 00:04:49]} 26. Kf1 {[%clk
01:29:13]} {[%emt 00:00:05]} Rb7 {[%clk 00:49:55]} {[%emt 00:04:43]} 27. Re1
{[%clk 01:29:35]} {[%emt 00:00:07]} Qd5 {[%clk 00:49:06]} {[%emt 00:01:19]} 28.
Qh6 {[%clk 01:29:05]} {[%emt 00:01:00]} g6 {[%clk 00:45:26]} {[%emt 00:04:10]}
29. Ke2 {[%clk 01:29:30]} {[%emt 00:00:05]} Rg7 {[%clk 00:41:34]} {[%emt
00:04:23]} 30. f4 {[%clk 01:26:25]} {[%emt 00:03:35]} Qxa2 {[%clk 00:37:19]}
{[%emt 00:04:45]} 31. Rg3 {[%clk 01:26:50]} {[%emt 00:00:04]} Qd5 {[%clk
00:35:14]} {[%emt 00:02:35]} 32. Kf1 {[%clk 01:26:49]} {[%emt 00:00:31]} a5
{[%clk 00:34:02]} {[%emt 00:01:43]} 33. Qh2 {[%clk 01:27:15]} {[%emt 00:00:04]}
b5 {[%clk 00:31:56]} {[%emt 00:02:36]} 34. Qe2 {[%clk 01:27:40]} {[%emt
00:00:05]} Re8 {[%clk 00:31:03]} {[%emt 00:01:23]} 35. Rb1 {[%clk 01:27:52]}
{[%emt 00:00:18]} b4 {[%clk 00:28:38]} {[%emt 00:02:55]} 36. cxb4 {[%clk
01:27:47]} {[%emt 00:00:35]} axb4 {[%emt 00:01:08]} 37. Bxb4 {[%clk 01:27:36]}
Rb7 {[%clk 00:24:56]} {[%emt 00:04:15]} 38. Qh5 {[%clk 01:23:29]} {[%emt
00:04:37]} Qc4+ {[%clk 00:23:07]} {[%emt 00:02:19]} 39. Kf2 {[%clk 01:23:54]}
{[%emt 00:00:04]} Qc2+ {[%clk 00:22:00]} {[%emt 00:01:37]} 40. Ke3 {[%clk
01:24:20]} {[%emt 00:00:05]} Rg7 {[%clk 00:21:34]} {[%emt 00:00:56]} 41. Bxd6
{[%clk 01:23:41]} {[%emt 00:01:08]} gxh5 {[%clk 00:21:15]} {[%emt 00:00:49]} 42.
Rxg7+ {[%clk 01:24:00]} {[%emt 00:00:11]} Kxg7 {[%clk 00:21:40]} {[%emt
00:00:05]} 43. Be5+ {[%clk 01:24:26]} {[%emt 00:00:05]} Kf7 {[%clk 00:21:42]}
{[%emt 00:00:27]} 44. Rb7+ {[%clk 01:24:49]} {[%emt 00:00:07]} Re7 {[%clk
00:21:37]} {[%emt 00:00:35]} 45. Rb8 {[%clk 01:25:16]} {[%emt 00:00:04]} Ra7
{[%clk 00:21:51]} {[%emt 00:00:16]} 0-1

[Event "Masters Tournament (MTO)"]
[Site "Biel, Switzerland"]
[Date "2026.07.15"]
[Round "3.23"]
[White "Morrison, Joseph"]
[Black "Hasenohr, Benedict"]
[Result "0-1"]
[TimeControl "100+30+30sec/move"]
[WhiteTitle "-"]
[BlackTitle "-"]
[WhiteFideId "479535"]
[BlackFideId "1303309"]
[WhiteElo "2048"]
[BlackElo "2247"]

1. Nf3 {[%clk 01:40:56]} {[%emt 00:00:03]} d5 {[%clk 01:40:55]} {[%emt
00:00:06]} 2. g3 {[%clk 01:41:13]} {[%emt 00:00:13]} c6 {[%clk 01:41:05]}
{[%emt 00:00:20]} 3. Bg2 {[%clk 01:40:56]} {[%emt 00:00:46]} Bf5 {[%clk
01:39:30]} {[%emt 00:02:06]} 4. O-O {[%clk 01:41:04]} {[%emt 00:00:21]} e6
{[%clk 01:38:37]} {[%emt 00:01:24]} 5. c4 {[%clk 01:36:24]} {[%emt 00:05:10]}
Nd7 {[%clk 01:27:22]} {[%emt 00:11:45]} 6. d4 {[%clk 01:28:16]} {[%emt
00:08:38]} h6 {[%clk 01:23:58]} {[%emt 00:03:54]} 7. b3 {[%clk 01:26:55]}
{[%emt 00:01:51]} Ngf6 {[%clk 01:24:04]} {[%emt 00:00:24]} 8. Bb2 {[%clk
01:26:34]} {[%emt 00:00:51]} Be7 {[%clk 01:24:10]} {[%emt 00:00:24]} 9. Nbd2
{[%clk 01:23:01]} {[%emt 00:04:03]} O-O {[%clk 01:24:29]} {[%emt 00:00:12]} 10.
Ne5 {[%clk 01:20:16]} {[%emt 00:03:15]} a5 {[%clk 01:23:28]} {[%emt 00:01:31]}
11. a3 {[%clk 01:15:01]} {[%emt 00:05:44]} Qb6 {[%clk 01:18:05]} {[%emt
00:05:52]} 12. e3 {[%clk 01:09:14]} {[%emt 00:06:18]} Rfd8 {[%clk 01:14:49]}
{[%emt 00:03:46]} 13. Nxd7 {[%clk 00:45:42]} {[%emt 00:24:02]} Rxd7 {[%clk
01:12:53]} {[%emt 00:02:26]} 14. Re1 {[%clk 00:44:40]} {[%emt 00:01:31]} Ne4
{[%clk 00:57:03]} {[%emt 00:16:20]} 15. c5 {[%clk 00:40:01]} {[%emt 00:05:10]}
Qd8 {[%clk 00:56:25]} {[%emt 00:01:08]} 16. Nxe4 {[%clk 00:33:53]} {[%emt
00:06:38]} Bxe4 {[%clk 00:54:17]} {[%emt 00:02:38]} 17. f3 {[%clk 00:33:07]}
{[%emt 00:01:16]} Bg6 {[%clk 00:54:32]} {[%emt 00:00:15]} 18. b4 {[%clk
00:32:10]} {[%emt 00:01:27]} b6 {[%clk 00:53:08]} {[%emt 00:01:54]} 19. Bc3
{[%clk 00:29:53]} {[%emt 00:02:46]} Rb7 {[%clk 00:45:37]} {[%emt 00:08:02]} 20.
Bf1 {[%clk 00:28:01]} {[%emt 00:02:22]} bxc5 {[%clk 00:37:30]} {[%emt
00:08:37]} 21. bxc5 {[%clk 00:27:28]} {[%emt 00:01:03]} Qb8 {[%clk 00:36:46]}
{[%emt 00:01:14]} 22. Qd2 {[%clk 00:24:30]} {[%emt 00:03:27]} Bd8 {[%clk
00:36:07]} {[%emt 00:01:10]} 23. Bd3 {[%clk 00:24:00]} {[%emt 00:01:00]} Bxd3
{[%clk 00:35:04]} {[%emt 00:01:33]} 24. Qxd3 {[%clk 00:24:28]} {[%emt
00:00:01]} Rb3 {[%clk 00:35:17]} {[%emt 00:00:17]} 25. a4 {[%clk 00:16:34]}
{[%emt 00:08:25]} Qb4 {[%clk 00:33:54]} {[%emt 00:01:54]} 26. Rec1 {[%clk
00:14:13]} {[%emt 00:02:50]} Rb8 {[%clk 00:33:57]} {[%emt 00:00:28]} 27. Qc2
{[%clk 00:11:04]} {[%emt 00:03:38]} Qc4 {[%clk 00:33:26]} {[%emt 00:01:01]} 28.
Qd2 {[%clk 00:11:25]} {[%emt 00:00:07]} Bc7 {[%clk 00:31:17]} {[%emt 00:02:41]}
29. Bxa5 {[%clk 00:10:21]} {[%emt 00:01:34]} Bxa5 {[%clk 00:31:22]} {[%emt
00:00:25]} 30. Qxa5 {[%clk 00:09:32]} {[%emt 00:01:18]} Qe2 {[%clk 00:31:47]}
{[%emt 00:00:06]} 31. Qe1 {[%clk 00:09:13]} {[%emt 00:00:49]} Qxf3 {[%clk
00:31:23]} {[%emt 00:00:54]} 32. Rc3 {[%clk 00:07:20]} {[%emt 00:02:23]} Rb2
{[%clk 00:30:36]} {[%emt 00:01:17]} 33. Qf1 {[%clk 00:07:37]} {[%emt 00:00:13]}
Qh5 {[%clk 00:22:36]} {[%emt 00:08:31]} 34. h3 {[%clk 00:06:43]} {[%emt
00:01:23]} e5 {[%clk 00:22:45]} {[%emt 00:00:21]} 35. a5 {[%clk 00:03:59]}
{[%emt 00:03:15]} Qg5 {[%clk 00:23:05]} {[%emt 00:00:10]} 36. Qe1 {[%clk
00:04:16]} {[%emt 00:00:12]} Qf5 {[%clk 00:20:50]} {[%emt 00:02:45]} 37. Qf1
{[%clk 00:03:51]} {[%emt 00:00:55]} Qe4 {[%clk 00:21:11]} {[%emt 00:00:10]} 38.
Rd1 {[%clk 00:03:30]} {[%emt 00:00:50]} Rb1 {[%clk 00:20:52]} {[%emt 00:00:50]}
39. Rcd3 {[%clk 00:03:43]} {[%emt 00:00:17]} Rxd1 {[%clk 00:17:52]} {[%emt
00:03:30]} 40. Qxd1 {[%clk 00:01:45]} {[%emt 00:02:27]} Rb2 {[%clk 00:18:13]}
{[%emt 00:00:09]} 41. Qf1 {[%clk 00:01:40]} {[%emt 00:00:34]} Ra2 {[%clk
00:11:17]} {[%emt 00:07:27]} 42. dxe5 {[%clk 00:19:54]} {[%emt 00:12:15]} Qxe5
{[%clk 00:40:48]} {[%emt 00:01:00]} 43. Qf3 {[%clk 00:19:22]} {[%emt 00:01:02]}
Ra1+ {[%clk 00:39:13]} {[%emt 00:02:05]} 44. Kf2 {[%clk 00:17:47]} {[%emt
00:02:04]} Qb2+ {[%clk 00:38:24]} {[%emt 00:01:20]} 45. Qe2 {[%clk 00:17:56]}
{[%emt 00:00:21]} Qb1 {[%clk 00:38:42]} {[%emt 00:00:11]} 46. Rd4 {[%clk
00:13:50]} {[%emt 00:04:36]} Ra2 {[%clk 00:34:12]} {[%emt 00:05:00]} 47. Rd2
{[%clk 00:13:59]} {[%emt 00:00:21]} Qf5+ {[%clk 00:34:37]} {[%emt 00:00:06]} 48.
Kg2 {[%clk 00:13:50]} {[%emt 00:00:37]} Qe4+ {[%clk 00:34:58]} {[%emt
00:00:11]} 49. Kf2 {[%clk 00:13:42]} {[%emt 00:00:35]} Rxa5 {[%clk 00:35:13]}
{[%emt 00:00:18]} 50. Ra2 {[%clk 00:12:43]} {[%emt 00:01:30]} Qf5+ {[%clk
00:34:56]} {[%emt 00:00:47]} 51. Kg2 {[%clk 00:12:55]} {[%emt 00:00:18]} Rxc5
{[%clk 00:35:11]} {[%emt 00:00:14]} 52. Qb2 {[%clk 00:11:49]} {[%emt 00:01:35]}
Qe4+ {[%clk 00:35:15]} {[%emt 00:00:26]} 53. Kf2 {[%clk 00:12:07]} {[%emt
00:00:12]} d4 {[%clk 00:33:57]} {[%emt 00:01:49]} 54. exd4 {[%clk 00:10:02]}
{[%emt 00:02:35]} Rf5+ {[%clk 00:33:02]} {[%emt 00:01:25]} 55. Kg1 {[%clk
00:10:26]} {[%emt 00:00:05]} Rb5 {[%clk 00:31:21]} {[%emt 00:02:12]} 56. Qg2
{[%clk 00:08:56]} {[%emt 00:02:00]} Qxd4+ {[%clk 00:29:45]} {[%emt 00:02:05]}
57. Kh2 {[%clk 00:09:23]} {[%emt 00:00:03]} Qd5 {[%clk 00:29:08]} {[%emt
00:01:08]} 58. Qe2 {[%clk 00:08:49]} {[%emt 00:01:04]} f5 {[%clk 00:27:22]}
{[%emt 00:02:16]} 59. Rc2 {[%clk 00:07:14]} {[%emt 00:02:05]} Rb1 {[%clk
00:26:25]} {[%emt 00:01:27]} 60. Qe8+ {[%clk 00:05:57]} {[%emt 00:01:47]} Kh7
{[%clk 00:26:48]} {[%emt 00:00:07]} 61. Rg2 {[%clk 00:06:19]} {[%emt 00:00:07]}
Qd1 {[%clk 00:26:55]} {[%emt 00:00:24]} 0-1